Cogmind - Beta 13 @@@ ROGUE MODE // 2024.04.04 @ 05:54:00 Player: Jennifer Result: Destroyed by G-47 Trooper with Particle Gun Performance ------------- Evolutions (0) 0 Regions Visited (2) 400 Robots Destroyed (18) 90 Value Destroyed (456) 456 Prototype IDs (0) 0 Alien Tech Used (0) 0 Bonus (0) 0 TOTAL SCORE: 946 Bonus ------- None Cogmind --------- Core Integrity 0/250 Matter 261/300 Energy 160/160 System Corruption 2% Temperature Cool (9) Movement Treading (240) Ox1 Location -10/Mines Parts ------- > --- POWER (1) -------- Light Nuclear Core > --- PROPULSION (2) --- Light Treads > --- UTILITY (2) ------ Large Storage Unit Power Shielding > --- WEAPON (2) ------- Assault Rifle Assault Rifle > --- INVENTORY (15) --- Ion Engine Light Ion Engine Aluminum Leg Aluminum Leg Large Storage Unit Huge Storage Unit Medium Matter Pod (100) Assault Rifle Assault Rifle Mining Laser Mining Laser Peak State ------------ > --- POWER ------------ Light Nuclear Core > --- PROPULSION ------- Light Treads Light Treads > --- UTILITY ---------- Large Storage Unit Power Shielding > --- WEAPON ----------- Assault Rifle Assault Rifle > --- INVENTORY -------- Ion Engine Light Ion Engine Aluminum Leg Aluminum Leg Large Storage Unit Huge Storage Unit Medium Matter Pod Assault Rifle Assault Rifle Mining Laser [Rating: 10] Favorites ----------- Power Light Ion Engine Engine Light Ion Engine Power Core Light Nuclear Core Propulsion Light Treads Treads Light Treads Utility Power Shielding Storage Large Storage Unit Protection Power Shielding Weapon Assault Rifle Energy Gun Medium Laser Ballistic Gun Assault Rifle Impact Weapon Hammer Build | -11 -10 -10 ------- Run | Yrd Mat Min Slots Evolved . | . . . Power . | . . . Propulsion . | . . . Utility . | . . . Weapon . | . . . Parts Attached 18 | 6 12 . Power 2 | 1 1 . Engine 1 | 1 . . Core 1 | . 1 . Reactor . | . . . Propulsion 4 | 2 2 . Treads 4 | 2 2 . Leg . | . . . Wheel . | . . . Hover . | . . . Flight . | . . . Utility 6 | 1 5 . Device . | . . . Storage 5 | 1 4 . Processor . | . . . Hackware . | . . . Protection 1 | . 1 . Artifact . | . . . Weapon 6 | 2 4 . Energy Gun 1 | 1 . . Energy Cannon . | . . . Ballistic Gun 4 | 1 3 . Ballistic Cannon . | . . . Launcher . | . . . Special Weapon . | . . . Impact Weapon 1 | . 1 . Slashing Weapon . | . . . Piercing Weapon . | . . . Special Melee Weapon . | . . . Unidentified Prototypes . | . . . Parts Lost 6 | . 5 1 Power 1 | . 1 . Propulsion 3 | . 2 1 Utility . | . . . Weapon 2 | . 2 . Highest Loss Streak 2 | . 2 1 To Critical Strikes . | . . . Average Slot Usage (%) 90 | . 89 99 Engine 6 | . 7 . Core 7 | . 6 14 Treads 24 | . 24 27 Storage 14 | . 14 14 Protection 9 | . 9 14 Energy Gun 1 | . 2 . Ballistic Gun 19 | . 18 28 Impact Weapon 5 | . 5 . Naked Turns . | . . . Heaviest Build 87 | 12 87 30 Greatest Support 40 | 40 40 40 Greatest Overweight (x) 2 | . 2 1 Average Overweight (x) . | . . . Largest Inventory Capacity 25 | 8 25 15 Average Capacity 11 | 7 11 15 Most Carried 11 | 4 11 11 Average Carried 7 | 2 6 11 Final Capacity 15 | 8 15 15 Final Carried 11 | 3 11 11 Class Distribution -------------------- 100% | Mutant Dominant Class ---------------- Mutant | -10/Materials Mutant | -10/Mines Resources | -11 -10 -10 ----------- Run | Yrd Mat Min Matter Collected 654 | 221 433 . Remotely . | . . . Salvage Created 705 | . 705 . Parts 34 | . 34 . Haulers Intercepted 2 | . 2 . Recyclers Shooed . | . . . Parts Field Recycled . | . . . Retrieved Matter . | . . . Parts Self-Destructed . | . . . Prevented . | . . . Kills | -11 -10 -10 ------- Run | Yrd Mat Min Combat Hostiles Destroyed 14 | . 14 . Melee 2 | . 2 . Guns 10 | . 10 . Classes Destroyed 5 | . 5 . Hauler 2 | . 2 . Recycler 1 | . 1 . Operator 1 | . 1 . Swarmer 3 | . 3 . Grunt 11 | . 11 . Best Kill Streak 3 | . 3 . Combat Bots Only 3 | . 3 . Max Kills in Single Turn 1 | . 1 . Gunslinging . | . . . Exploded . | . . . Melee 1 | . 1 . Uniques/NPCs Destroyed . | . . . Combat | -11 -10 -10 -------- Run | Yrd Mat Min Hostile Shots Fired 99 | . 82 17 Missed 19 | . 14 5 Damage Taken 1072 | . 916 156 Core 250 | . 233 17 Absorbed by Shields . | . . . Redirected to Shielding 24 | . 17 7 Core Remaining (%) 100 | 100 . . Volleys Fired 53 | . 46 7 Largest 2 | . 2 2 Hottest 70 | . 70 40 Shots Fired 96 | . 83 13 Gun 96 | . 83 13 Cannon . | . . . Launcher . | . . . Special . | . . . Kinetic 80 | . 67 13 Thermal 16 | . 16 . Explosive . | . . . Electromagnetic . | . . . Robot Hit Streak 8 | . 8 6 Robot Miss Streak 3 | . 3 2 Penetration Max . | . . . Secondary Targets . | . . . Shots Hit Robots 75 | . 66 9 Core Hits 25 | . 23 2 Critical Kills . | . . . Critical Parts Destroyed 5 | . 5 . Critical Strikes 6 | . 6 . Burn 1 | . 1 . Smash 5 | . 5 . Melee Attacks 21 | . 21 . Impact 21 | . 21 . Slashing . | . . . Piercing . | . . . Sneak Attacks 2 | . 2 . Combat Hostiles . | . . . Follow-up Attacks . | . . . Damage Inflicted 1153 | . 1043 110 Guns 671 | . 561 110 Cannons . | . . . Explosions . | . . . Melee 475 | . 475 . Ramming 7 | . 7 . Kinetic 534 | . 424 110 Thermal 137 | . 137 . Explosive . | . . . Electromagnetic . | . . . Impact 475 | . 475 . Slashing . | . . . Piercing . | . . . Highest Corruption 2 | . 2 2 Average Corruption 1 | . 1 2 Corruption Purged . | . . . Corruption Blocked . | . . . Effects 18 | . 14 4 Message Errors 2 | . 2 . Matter Fused 8 | . 7 1 Heat Flow Errors 1 | . 1 . Energy Discharges 1 | . . 1 Parts Fused 1 | . 1 . Data Loss (minor) 2 | . 2 . Misfires 1 | . 1 . Alerts 1 | . . 1 Weapon Failures 1 | . . 1 Overload Shots . | . . . Overflow Damage 208 | . 208 . Projectiles . | . . . Explosions . | . . . Melee 208 | . 208 . Knockbacks 1 | . 1 . Impact 1 | . 1 . Kinetic . | . . . Secondary . | . . . Self-Inflicted Damage . | . . . Shots . | . . . Rammed 2 | 1 1 . Targets Rammed 2 | 1 1 . Kicked . | . . . Crushed . | . . . Highest Temperature 183 | . 183 10 Average Temperature 46 | . 50 3 Received Heat Transfer 468 | . 378 90 Siege Activations . | . . . Robots Corrupted . | . . . Combat Hostiles . | . . . Parts Fried 5 | . 5 . Impact Corruptions 7 | . 7 . Robots Melted . | . . . Combat Hostiles . | . . . Parts Melted . | . . . Heat Transferred 481 | . 481 . Parts Sabotaged . | . . . Parts Stolen . | . . . Parts Stripped . | . . . Power Chain Reactions . | . . . Alert | -11 -10 -10 ------- Run | Yrd Mat Min Peak Influence 265 | . 265 2 Initial 2 | . . 2 Average 69 | . 81 1 Maximum Alert Level 1 | . 1 . Low Security (%) 91 | 100 90 100 Level 1 8 | . 9 . Level 2 . | . . . Level 3 . | . . . Level 4 . | . . . Level 5 . | . . . High Security . | . . . Max Security . | . . . Squads Dispatched 4 | . 4 . Investigation 2 | . 2 . Extermination . | . . . Reinforcement 2 | . 2 . Assault . | . . . Garrison . | . . . Intercept . | . . . Searches Triggered . | . . . Construction Impeded . | . . . Haulers Reinforced . | . . . Active Scanning Responses . | . . . Cargo Convoy Interrupts . | . . . Stealth | -11 -10 -10 --------- Run | Yrd Mat Min Distress Signals 2 | . 2 . Communications Jammed . | . . . Distress Signals . | . . . Times Spotted 27 | . 25 2 Peak Tracking Total 7 | . 7 2 Tactical Retreats 3 | . 3 . Traps | -11 -10 -10 ------- Run | Yrd Mat Min Traps Triggered 6 | . 6 . Indirectly . | . . . Trap Hack Attempts . | . . . Triggered . | . . . Disarmed . | . . . Reprogrammed . | . . . Reused . | . . . Traps Extracted . | . . . Installed . | . . . Triggered . | . . . Machines | -11 -10 -10 ---------- Run | Yrd Mat Min Machines Disabled . | . . . Max in Single Turn . | . . . Machines Repaired . | . . . Machines Dismantled . | . . . Machines Sabotaged . | . . . Overloaded Fab Kills . | . . . Hacking | -11 -10 -10 --------- Run | Yrd Mat Min Machines Accessed 5 | . 5 . Terminals 4 | . 4 . Fabricators . | . . . Repair Stations . | . . . Recycling Units 1 | . 1 . Scanalyzers . | . . . Garrison Access . | . . . Total Hacks 13 | . 13 . Successful 4 | . 4 . Failed 9 | . 9 . Catastrophic 3 | . 3 . Database Lockouts . | . . . Manual 6 | . 6 . Terminals 12 | . 12 . Fabricators . | . . . Repair Stations . | . . . Recycling Units 1 | . 1 . Scanalyzers . | . . . Garrison Access . | . . . Terminal Hacks 3 | . 3 . Alert Level 1 | . 1 . Patrol Status 1 | . 1 . Zone Layout 1 | . 1 . Fabricator Hacks . | . . . Repair Station Hacks . | . . . Recycling Unit Hacks 1 | . 1 . Report Inventory 1 | . 1 . Scanalyzer . | . . . Garrison Access Hacks . | . . . Unauthorized Hacks . | . . . Terminals . | . . . Fabricators . | . . . Repair Stations . | . . . Recycling Units . | . . . Scanalyzers . | . . . Garrison Access . | . . . Data Cores Recovered . | . . . Used . | . . . Hacking Detections 3 | . 3 . Full Trace Events 1 | . 1 . Feedback Events 1 | . 1 . Corruption 1 | . 1 . Feedback Blocked . | . . . Robot Schematics Acquired . | . . . Robots Built . | . . . Authchips . | . . . Time . | . . . Total Robot Build Rating . | . . . Part Schematics Acquired . | . . . Parts Built . | . . . Authchips . | . . . Time . | . . . Total Part Build Rating . | . . . Parts Repaired . | . . . Time . | . . . Parts Recycled . | . . . Recycled Matter . | . . . Retrieved Matter . | . . . Retrieved Components . | . . . Parts Scanalyzed . | . . . Part Schematics Acquired . | . . . Parts Damaged . | . . . Bothacking | -11 -10 -10 ------------ Run | Yrd Mat Min Used RIF Installer . | . . . Robots Hacked . | . . . Non-combat . | . . . Combat . | . . . Robot Hacks Applied . | . . . Relay Couplers Released . | . . . Fabnet Peak Effective % . | . . . Robots Rewired . | . . . Allies Hacked . | . . . Hacks Repelled . | . . . Allies | -11 -10 -10 -------- Run | Yrd Mat Min Total Allies . | . . . Largest Group . | . . . Highest-Rated Group . | . . . Highest-Rated Ally . | . . . Total Orders . | . . . Ally Attacks . | . . . Total Damage . | . . . Kills . | . . . Allies Corrupted . | . . . Allies Melted . | . . . Intel | -11 -10 -10 ------- Run | Yrd Mat Min Robot Analysis Total . | . . . Derelict Logs Recovered . | . . . Drone Launches . | . . . Drone Recoveries . | . . . Exploration | -11 -10 -10 ------------- Run | Yrd Mat Min Turns Passed 1861 | 90 1585 186 Spaces Moved 875 | 50 726 99 Core 6 | 6 . . Treads 869 | 44 726 99 Legs . | . . . Wheels . | . . . Hover . | . . . Flight . | . . . Fastest Speed 50 | 50 160 160 Average Speed 176 | 146 180 160 Slowest Speed 320 | 160 320 240 Overloaded Moves . | . . . Propulsion Burnouts . | . . . Robots Hopped . | . . . Cave-ins Triggered . | . . . Exploration Rate (%) 39 | 4 91 23 Regions Visited 2 Branch Regions 1 Pre-discovered Areas . | . . . Known Exits Taken . | . . . Unknown Exits Taken 2 | 1 1 . Scrap Searched . | . . . Spaces Dug . | . . . Terrain Destroyed . | . . . Melee . | . . . Projectile . | . . . AOE . | . . . Terrain Rammed . | . . . Walls Destroyed . | . . . Machines Disabled . | . . . Actions | -11 -10 -10 --------- Run | Yrd Mat Min Total 1064 | 64 887 113 Wait 74 | 2 65 7 Move 873 | 49 725 99 Hop . | . . . Pick Up 16 | 5 11 . Fast Attach 10 | 5 5 . Attach 5 | 1 4 . Detach 3 | . 3 . Swap 3 | . 3 . Drop 4 | 1 3 . Fire 53 | . 46 7 Melee 21 | . 21 . Ram . | . . . Kick . | . . . Crush 2 | 1 1 . Escape Stasis . | . . . Rewire . | . . . Trap . | . . . Miscellaneous . | . . . Route ------- -11/Scrapyard -10/Materials (discovered 4 exits: [*Mat x3] / [*Min]) -10/Mines History --------- Turn | Location | Event 31 | -11/Scrapyard | Discovered new exit (range 16) 91 | -11/Scrapyard | Entered Materials 151 | -10/Materials | Discovered new exit (range 8) 301 | -10/Materials | Build established: Mutant 349 | -10/Materials | Discovered new exit (range 13) 540 | -10/Materials | Core integrity fell below 50% 612 | -10/Materials | Discovered new exit (range 15) 856 | -10/Materials | Discovered new exit (range 5) 951 | -10/Materials | Core integrity fell below 20% 1676 | -10/Materials | Entered Mines 1862 | -10/Mines | Destroyed by G-47 Trooper with Particle Gun Last Messages --------------- 01466_ System corrupted: Assault Rifle misfires. 01485_ RANT F DM%TK5|7FCZW|>& 01508_ System corrupted: Matter fused (-6). 01526_ System corrupted: Matter fused (-7). 01545_ System corrupted: Matter fused (-9). 01583_ Acquired 26 matter. 01633_ A-02 Transporter destroyed. 01639_ Acquired Lgt. Treads. 01647_ Acquired 52 matter. 01671_ #G BU>QC=XTUNSC9IRGG F6ZDIS9W5 T Q& 01672_ Acquired Mining Laser. LOCATION=UNKNOWN GOAL=ESCAPE Something is scanning the area. 01720_ System corrupted: Energy discharge (-64). 01752_ System corrupted: IFF burst signal emitted. 01784_ System corrupted: Matter fused (-5). 01838_ System corrupted: Assault Rifle jammed. 01854_ Lgt. Treads destroyed. 01860_ G-34 Mercenary destroyed. Map ----- +----------------------------------------------------+ | ??????????????????????????????????????? | | ??????????????????????????????????????? | | ??????????????????????????????????????? | | ??????????????????????????????????????? | | ??????????????????????????????????????? | | ??????????????????????????????????????? | | ??????????????????????????????????????? | | ??????????????????????????????????????? | | ??????????????????????????????????????? | | ???????? ?????????????????????????????? | | ???????# ?????????? ?????????????????? | | ???????# ????? #?? ?????????????????? | | ???????# ????? #?? ?????????????????? | | ???????# #???? #?? #????????????????? | | ???????# #??? ##? #????????????????? | | ??????## ### ## #????????????????? | | ?????## # ?????????????????? | | ?????# ??????????????????? | | ?????# ???????????????????? | | ??????# ???????????????????? | | ???????# ???????????????????? | | ????????# ## ???????????????????? | | ?????????# #?# #???????????????????? | | ??????????# #??# #???????????????????? | | ??????????#g #### #???????????????????? | | ??????????# %@ #???????????????????? | | ??????????# ######???????????????????? | | ??????????# ##??????????????????????? | | ????????### #??????????????????????? | | ???????## #????????????##????????? | | ??????## ###?????????? ????????? | | ?????## ### ##?????????# ????????? | | ????## ##### ##????????? #####???? | | ????# ##??# ##???????? ????? | | ????# #???# #???????? ?????? | | ????## ##??# ########## #??????? | | ?????## #### #??????? | | ??????## """ ########### ##?????? | | ???????## """ #????????## ##????? | | ????????## """ #????????# #??### | | ?????????# #????????# #### | | ?????????## #???????## ## | | ??????????## ##??????## | | ???????????## #???????# | | ????????????# ##???????# | | ???????????## #????????# ### | | ??????????## #????????# ##?## | | ?????????## #????????# #???# | | ????????## #????????# ##???# | | ????????# ##???????## ##????# | +----------------------------------------------------+ Best States ------------- Heat Dissipation 25 Energy Generation 14 Energy Capacity 160 Matter Stores 300 Matter Capacity 300 Sight Range 16 Terrain Scan Density 10 Power Shielding 33 Evasion (%) 40 Recoil Reduction 2 Item Schematics ----------------- None Robot Schematics ------------------ None Fabricated ------------ Nothing Alien Tech Used ----------------- None Achievements -------------- None Challenges ------------ None Game ------ Seed SuspensionMicroModule Manual? 0 Play Time 00:13:27 Cumulative 26.4 hours Start 2024.04.04 @ 05:41:14 End 2024.04.04 @ 05:54:00 Sessions 1 Manual Loads 0 Difficulty Rogue Special Mode None Game No. 42 Rogue 42 Adventurer 0 Explorer 0 Win Type - Total 0 Types 0/0/0/0/0/0/0/0/0 Lore% 15 Gallery% 22 Achievement% 21 Wizard Run 0 Options --------- Layout 2 ASCII 0 Keyboard 1 Movement Numpad Keybinds 0 Fullscreen 2 Font 20/SmallcapsGlow Map View 64x51 Zoom Use 0% Tactical HUD 1 Map Filters NONE Filters NONE Steam 1 RUN: 5234bd59-7fc4-4c21-b5d4-44703f23bd11